Cogmind - Beta 9.4 @@@ ROGUE MODE // 2020.02.22 @ 17:45:21 Player: retoid Result: Destroyed by Y-45 Defender with Beam Rifle Performance ------------- Evolutions (1) 500 Regions Visited (3) 600 Robots Destroyed (13) 65 Value Destroyed (337) 337 Prototype IDs (0) 0 Alien Tech Used (0) 0 Bonus (0) 0 TOTAL SCORE: 1502 Bonus ------- None Cogmind --------- Core Integrity 0/400 Matter 289/300 Energy 100/100 System Corruption 0% Temperature Cool (9) Movement Core (50) Location -9/Materials Parts ------- > --- POWER (1) -------- (None) > --- PROPULSION (2) --- (None) > --- UTILITY (4) ------ Seismic Analyzer > --- WEAPON (2) ------- (None) > --- INVENTORY (4) ---- Light Ion Engine Aluminum Leg Aluminum Leg Peak State ------------ > --- POWER ------------ Light Nuclear Core > --- PROPULSION ------- Aluminum Leg Aluminum Leg > --- UTILITY ---------- Improved Terrain Scanner Seismic Analyzer > --- WEAPON ----------- Particle Gun Assault Rifle > --- INVENTORY -------- Light Ion Engine Aluminum Leg Aluminum Leg [Rating: 11] Favorites ----------- Power Ion Engine Engine Ion Engine Power Core Light Nuclear Core Propulsion Aluminum Leg Leg Aluminum Leg Utility Improved Terrain Scanner Device Improved Terrain Scanner Storage Small Storage Unit Processor Seismic Analyzer Weapon Assault Rifle Energy Gun EM Pulse Gun Ballistic Gun Assault Rifle Special Weapon Mining Laser Build | -11 -10 -10 -9 ------- Run | Scr Mat Min Mat Slots Evolved 2 | . . . 2 Power . | . . . . Propulsion . | . . . . Utility 2 | . . . 2 Weapon . | . . . . Parts Attached 15 | 7 1 6 1 Power 2 | 1 . 1 . Engine 1 | 1 . . . Core 1 | . . 1 . Reactor . | . . . . Propulsion 5 | 2 . 3 . Treads . | . . . . Leg 5 | 2 . 3 . Wheel . | . . . . Hover . | . . . . Flight . | . . . . Utility 3 | 2 1 . . Device 1 | 1 . . . Storage 1 | 1 . . . Processor 1 | . 1 . . Hackware . | . . . . Protection . | . . . . Artifact . | . . . . Weapon 5 | 2 . 2 1 Energy Gun 2 | 1 . 1 . Energy Cannon . | . . . . Ballistic Gun 2 | 1 . 1 . Ballistic Cannon . | . . . . Launcher . | . . . . Special Weapon 1 | . . . 1 Impact Weapon . | . . . . Slashing Weapon . | . . . . Piercing Weapon . | . . . . Special Melee Weapon . | . . . . Unidentified Prototypes . | . . . . Parts Lost 7 | . . . 7 Power 1 | . . . 1 Propulsion 2 | . . . 2 Utility 1 | . . . 1 Weapon 3 | . . . 3 Highest Loss Streak 7 | . . . 7 Average Slot Usage (%) 96 | . 99 100 53 Engine 9 | . 14 9 . Core 3 | . . 4 4 Leg 27 | . 28 28 16 Device 13 | . 14 14 8 Processor 13 | . 13 14 11 Energy Gun 13 | . 14 14 4 Ballistic Gun 13 | . 14 14 8 Naked Turns . | . . . . Heaviest Build 14 | 14 14 11 11 Greatest Support 20 | 20 20 20 20 Greatest Overweight (x) . | . . . . Average Overweight (x) . | . . . . Largest Inventory Capacity 6 | 6 6 4 4 Average Capacity 4 | 5 4 4 4 Most Carried 4 | 3 4 4 4 Average Carried 3 | . 2 3 3 Final Capacity 6 | 6 4 4 4 Final Carried 4 | . 4 4 3 Class Distribution -------------------- 75% | Mutant 24% | Scavenger-Mutant Dominant Class ---------------- Mutant | -10/Materials Mutant | -10/Mines Mutant | -9/Materials Resources | -11 -10 -10 -9 ----------- Run | Scr Mat Min Mat Matter Collected 434 | 224 90 120 . Remotely . | . . . . Salvage Created 426 | 14 138 260 14 Parts 33 | 4 10 17 2 Haulers Intercepted . | . . . . Recyclers Shooed . | . . . . Parts Field Recycled . | . . . . Retrieved Matter . | . . . . Parts Self-Destructed . | . . . . Prevented . | . . . . Kills | -11 -10 -10 -9 ------- Run | Scr Mat Min Mat Combat Hostiles Destroyed 11 | . 3 7 1 Guns 11 | . 3 7 1 Classes Destroyed 4 | 1 2 1 . Tunneler 1 | 1 . . . Watcher 1 | . 1 . . Swarmer 4 | . . 3 1 Grunt 7 | . 3 4 . Best Kill Streak 3 | 1 3 3 1 Combat Bots Only 3 | . 3 3 1 Max Kills in Single Turn 2 | 1 1 2 1 Gunslinging 1 | . . 1 . Exploded . | . . . . Melee . | . . . . Uniques/NPCs Destroyed . | . . . . Combat | -11 -10 -10 -9 -------- Run | Scr Mat Min Mat Damage Taken 1156 | . 125 225 806 Core 489 | . 22 61 406 Absorbed by Shields . | . . . . Core Remaining (%) 83 | 100 . 66 . Volleys Fired 45 | 5 8 20 12 Largest 2 | 2 2 2 2 Hottest 85 | 60 60 60 85 Shots Fired 83 | 10 16 40 17 Gun 83 | 10 16 40 17 Cannon . | . . . . Launcher . | . . . . Special . | . . . . Kinetic 45 | 5 8 20 12 Thermal 5 | . . . 5 Explosive . | . . . . Electromagnetic 33 | 5 8 20 . Robot Hit Streak 10 | 2 10 6 3 Robot Miss Streak 5 | 4 1 3 5 Penetration Max . | . . . . Secondary Targets 2 | . 1 1 . Max Gunslinging Chain 1 | . 1 1 . Shots Hit Robots 45 | 4 12 23 6 Core Hits 20 | 1 5 13 1 Critical Hits 1 | . . . 1 Critical Kills . | . . . . Critical Parts Destroyed 1 | . . . 1 Melee Attacks . | . . . . Impact . | . . . . Slashing . | . . . . Piercing . | . . . . Sneak Attacks . | . . . . Combat Hostiles . | . . . . Follow-up Attacks . | . . . . Damage Inflicted 674 | 79 164 320 111 Guns 664 | 79 154 320 111 Cannons . | . . . . Explosions . | . . . . Melee . | . . . . Ramming 10 | . 10 . . Kinetic 284 | 37 44 126 77 Thermal 34 | . . . 34 Explosive . | . . . . Electromagnetic 346 | 42 110 194 . Impact . | . . . . Slashing . | . . . . Piercing . | . . . . Highest Corruption . | . . . . Average Corruption . | . . . . Corruption Purged . | . . . . Overload Shots . | . . . . Overflow Damage . | . . . . Projectiles . | . . . . Explosions . | . . . . Melee . | . . . . Knockbacks . | . . . . Impact . | . . . . Kinetic . | . . . . Secondary . | . . . . Self-Inflicted Damage . | . . . . Shots . | . . . . Rammed . | . . . . Targets Rammed 1 | . 1 . . Kicked 1 | . 1 . . Crushed . | . . . . Highest Temperature 98 | . 66 63 98 Average Temperature 37 | . 34 32 51 Received Heat Transfer 228 | . 66 90 72 Siege Activations . | . . . . Robots Corrupted . | . . . . Combat Hostiles . | . . . . Parts Fried . | . . . . Impact Corruptions . | . . . . Robots Melted . | . . . . Combat Hostiles . | . . . . Parts Melted . | . . . . Heat Transferred 74 | . . . 74 Parts Sabotaged . | . . . . Parts Stolen . | . . . . Parts Stripped . | . . . . Power Chain Reactions . | . . . . Missiles Intercepted . | . . . . Alert | -11 -10 -10 -9 ------- Run | Scr Mat Min Mat Peak Influence 169 | 5 129 169 34 Average Influence 53 | 1 32 71 14 Maximum Alert Level . | . . . . Low Security (%) 100 | 100 100 100 100 Level 1 . | . . . . Level 2 . | . . . . Level 3 . | . . . . Level 4 . | . . . . Level 5 . | . . . . High Security . | . . . . Max Security . | . . . . Squads Dispatched 2 | . 2 . . Investigation 1 | . 1 . . Extermination . | . . . . Reinforcement 1 | . 1 . . Assault . | . . . . Garrison . | . . . . Intercept . | . . . . Construction Impeded . | . . . . Haulers Reinforced . | . . . . Stealth | -11 -10 -10 -9 --------- Run | Scr Mat Min Mat Distress Signals 2 | . 1 . 1 Communications Jammed . | . . . . Distress Signals . | . . . . Times Spotted 23 | . 6 7 10 Peak Tracking Total 8 | . 3 3 8 Tactical Retreats 3 | . 1 . 2 Traps | -11 -10 -10 -9 ------- Run | Scr Mat Min Mat Traps Triggered 1 | . 1 . . Indirectly . | . . . . Trap Hack Attempts . | . . . . Triggered . | . . . . Disarmed . | . . . . Reprogrammed . | . . . . Reused . | . . . . Traps Extracted . | . . . . Installed . | . . . . Triggered . | . . . . Machines | -11 -10 -10 -9 ---------- Run | Scr Mat Min Mat Machines Disabled 1 | . 1 . . Max in Single Turn 1 | . 1 . . Machines Sabotaged . | . . . . Garrisons Compromised . | . . . . Overloaded Fab Kills . | . . . . Fab Network Shutdowns . | . . . . Hacking | -11 -10 -10 -9 --------- Run | Scr Mat Min Mat Machines Accessed 1 | . 1 . . Terminals 1 | . 1 . . Fabricators . | . . . . Repair Stations . | . . . . Recycling Units . | . . . . Scanalyzers . | . . . . Garrison Access . | . . . . Total Hacks 2 | . 2 . . Successful 2 | . 2 . . Failed . | . . . . Catastrophic . | . . . . Database Lockouts . | . . . . Manual . | . . . . Terminals 2 | . 2 . . Fabricators . | . . . . Repair Stations . | . . . . Recycling Units . | . . . . Scanalyzers . | . . . . Garrison Access . | . . . . Terminal Hacks 2 | . 2 . . Record 1 | . 1 . . Maintenance Status 1 | . 1 . . Fabricator Hacks . | . . . . Repair Station Hacks . | . . . . Recycling Unit Hacks . | . . . . Scanalyzer . | . . . . Garrison Access Hacks . | . . . . Unauthorized Hacks . | . . . . Terminals . | . . . . Fabricators . | . . . . Repair Stations . | . . . . Recycling Units . | . . . . Scanalyzers . | . . . . Garrison Access . | . . . . Data Cores Recovered . | . . . . Used . | . . . . Hacking Detections . | . . . . Full Trace Events . | . . . . Feedback Events . | . . . . Feedback Blocked . | . . . . Robot Schematics Acquired . | . . . . Robots Built . | . . . . Matter . | . . . . Time . | . . . . Total Robot Build Rating . | . . . . Part Schematics Acquired . | . . . . Parts Built . | . . . . Matter . | . . . . Time . | . . . . Total Part Build Rating . | . . . . Parts Repaired . | . . . . Time . | . . . . Parts Recycled . | . . . . Recycled Matter . | . . . . Retrieved Matter . | . . . . Retrieved Components . | . . . . Parts Scanalyzed . | . . . . Part Schematics Acquired . | . . . . Parts Damaged . | . . . . Bothacking | -11 -10 -10 -9 ------------ Run | Scr Mat Min Mat Used RIF Installer . | . . . . Robots Hacked . | . . . . Non-combat . | . . . . Combat . | . . . . Robot Hacks Applied . | . . . . Relay Couplers Released . | . . . . Robots Rewired . | . . . . Allies Hacked . | . . . . Hacks Repelled . | . . . . Allies | -11 -10 -10 -9 -------- Run | Scr Mat Min Mat Total Allies 1 | . . 1 . Largest Group 1 | . . 1 . Highest-Rated Group 31 | . . 31 . Highest-Rated Ally 31 | . . 31 . Total Orders . | . . . . Ally Attacks . | . . . . Total Damage . | . . . . Kills . | . . . . Allies Corrupted . | . . . . Allies Melted . | . . . . Intel | -11 -10 -10 -9 ------- Run | Scr Mat Min Mat Robot Analysis Total . | . . . . Derelict Logs Recovered 2 | . . 2 . Drone Launches . | . . . . Drone Recoveries . | . . . . Exploration | -11 -10 -10 -9 ------------- Run | Scr Mat Min Mat Turns Passed 1213 | 85 294 758 76 Spaces Moved 839 | 52 202 565 20 Core 8 | 8 . . . Treads . | . . . . Legs 831 | 44 202 565 20 Wheels . | . . . . Hover . | . . . . Flight . | . . . . Fastest Speed 50 | 50 120 120 120 Average Speed 119 | 109 120 120 120 Slowest Speed 120 | 120 120 120 120 Overloaded Moves . | . . . . Propulsion Burnouts . | . . . . Robots Hopped . | . . . . Cave-ins Triggered . | . . . . Exploration Rate (%) 32 | 4 26 93 5 Regions Visited 3 Branch Regions 1 Pre-discovered Areas 1 | . . 1 . Known Exits Taken . | . . . . Unknown Exits Taken 3 | 1 1 1 . Scrap Searched 1 | . . 1 . Spaces Dug . | . . . . Terrain Destroyed . | . . . . Melee . | . . . . Projectile . | . . . . AOE . | . . . . Actions | -11 -10 -10 -9 --------- Run | Scr Mat Min Mat Total 972 | 70 238 609 55 Wait 43 | . 20 1 22 Move 836 | 51 201 564 20 Hop . | . . . . Pick Up 21 | 7 5 9 . Fast Attach . | . . . . Attach 15 | 7 1 6 1 Detach 1 | . 1 . . Swap . | . . . . Drop 10 | . 1 9 . Fire 45 | 5 8 20 12 Melee . | . . . . Ram . | . . . . Kick 1 | . 1 . . Crush . | . . . . Escape Stasis . | . . . . Rewire . | . . . . Trap . | . . . . Miscellaneous . | . . . . Route ------- -11/Scrapyard -10/Materials -10/Mines -9/Materials (discovered 2 exits: Mat x2) History --------- Turn | Location | Event 3 | -11/Scrapyard | Discovered new exit (range 15) 86 | -11/Scrapyard | Entered Materials 311 | -10/Materials | Build established: Mutant 362 | -10/Materials | Discovered new exit (range 8) 380 | -10/Materials | Entered Mines 537 | -10/Mines | Learned location of 2 exits from Materials 598 | -10/Mines | Learned location of Zion (-7) 877 | -10/Mines | Received a Mining Laser from a helpful Derelict 1065 | -10/Mines | Discovered new exit (range 8) 1138 | -10/Mines | Entered Materials 1138 | -9/Materials | Evolved 2 slots: Utility x2 1139 | -9/Materials | Identified exit to Materials 1160 | -9/Materials | Build established: Scavenger-Mutant 1201 | -9/Materials | Core integrity fell below 50% 1211 | -9/Materials | Core integrity fell below 20% 1214 | -9/Materials | Destroyed by Y-45 Defender with Beam Rifle Last Messages --------------- 00914_ Acquired 10 matter. 01065_ EXIT=FOUND 01086_ K-01 Serf collects debris. 01136_ JR-GC7(g): "You look like you can take it from here!" 01136_ JR-GC7(g) slips back into the shadows. PARAMETERS=UTILITY_2 LOCATION=UNKNOWN GOAL=ESCAPE Loading 2 Materials exits... 01153_ W-16 Scout sends out distress signal. 01159_ S-10 Pest suffers critical hit. 01159_ Destroyed Lgt. Assault Rifle. 01164_ Lgt. Nuclear Core destroyed. 01166_ Particle Gun destroyed. 01172_ Mining Laser destroyed. 01188_ Aluminum Leg destroyed. 01188_ S-10 Pest destroyed. 01192_ Assault Rifle destroyed. 01198_ Imp. Terrain Scanner destroyed. 01200_ Aluminum Leg destroyed. Map ----- +----------------------------------------------------+ | ??????????????????????????????? | | ??????????????????????????????? | | ??????????????????????????????? | | ??????????????????????????????? | | ??????????????????????????????? | | ??????????????????????????????? | | ??????????????????????????????? | | ??????????????????????????????? | | ??????????????????????????????? | | ??????????????????????????????? | | ???? ?????????????????????????? | | ??????? ??????????????????????? | | ??????????????????????????????? | | ????#?#???##??????????????????? | | ?#????????#???? ??????????????? | | ?????????##??? ?? ????????????? | | ???#?????#??#?? ? ????????????? | | ????????????? ? ???????????? | | ?#????##??????????????????????? | | ?#??#????#?##?????????????????? | | ??????##??????? ? ""??????????? | | ?????????#??# ??? ? ??#??????? | | ????###########?#/###?????????? | | ##?## # #####?????? | | ?#??# # ?????? | | ????# @ Y !# ?????? | | ????#=%s s # ???????? | | ##?###+#####;## #?? ?#????? | | ???#?# #?# ???????? | | ?????# ##?? ??????? | | ?????# #??????????? | | ??#?#### "Y" ##? ???# "?? | | ??#?#??# """ #????? ????? | | ???#?#?# #?? ???????? | | ####???# #?? ???????" | | ?????###### #??? ?????? | | #?#???########## #??????????? | | #??##??T # #?##???????? | | ##???? """ # #?????#????? | | ?#??"? """ + #?????##?"?? | | ?#?#?? """ # #??????????? | | ?????"? # #?????##???? | | #?#??? ?# #??#???????? | | ?????# [ #####???#??????? | | ?????# ????????????????? | | ?????########?????#??????#????? | | ?????????????##??#????????#???? | | ???????????????#??????????#???? | | ????????????#?#???????????????? | | ??????????????????????????????? | +----------------------------------------------------+ Best States ------------- Heat Dissipation 28 Energy Generation 14 Energy Capacity 250 Matter Stores 300 Matter Capacity 300 Sight Range 16 Terrain Scan Range 16 Terrain Scan Density 60 Evasion (%) 40 Item Schematics ----------------- None Robot Schematics ------------------ None Fabricated ------------ Nothing Alien Tech Used ----------------- None Achievements -------------- None Challenges ------------ None Game ------ Seed WaveSmallTendrils Manual? 0 Play Time 00:22:02 Cumulative 11.1 hours Start 2020.02.22 @ 17:21:50 End 2020.02.22 @ 17:45:21 Sessions 1 Manual Loads 0 Difficulty Rogue Special Mode None Game No. 7 Rogue 7 Adventurer 0 Explorer 0 Win Type - Total 0 Types 0/0/0/0/0/0/0 Lore% 11 Gallery% 12 Achievement% 10 Wizard Run 0 Options --------- ASCII 0 Keyboard 0 Movement Mouse Keybinds 0 Fullscreen 1 Font 18/SmallcapsGlow Map View 76x50 Tactical HUD 1 Map Filters NONE Filters NONE Steam 1 RUN: 27ec1e1a-624e-43c7-bf6b-a88d932aabde